Workbook

Sheet 000270401010
A1: 2024年省管局局属幼儿园幼儿教师岗绘画成绩统计表
A2: 岗位代码：000270401010
A3: 序号 | B3: 考生姓名 | C3: 面试准考证号 | D3: 绘画成绩 | E3: 排名
A4: 01 | B4: 赵瑞璟 | C4: =VLOOKUP(B4,'[1]000270401010'!$B$4:$C$39,2,FALSE) -> 10025 | D4: 18.67 | E4: 1
A5: 02 | B5: 戴嘉欣 | C5: =VLOOKUP(B5,'[1]000270401010'!$B$4:$C$39,2,FALSE) -> 10041 | D5: 18.67 | E5: 1
A6: 03 | B6: 雷茜茜 | C6: =VLOOKUP(B6,'[1]000270401010'!$B$4:$C$39,2,FALSE) -> 10004 | D6: 17.67 | E6: 3
A7: 04 | B7: 祝玥 | C7: =VLOOKUP(B7,'[1]000270401010'!$B$4:$C$39,2,FALSE) -> 10026 | D7: 17.67 | E7: 3
A8: 05 | B8: 刘澳珍 | C8: =VLOOKUP(B8,'[1]000270401010'!$B$4:$C$39,2,FALSE) -> 10052 | D8: 17.00 | E8: 5
A9: 06 | B9: 刘睿扬 | C9: =VLOOKUP(B9,'[1]000270401010'!$B$4:$C$39,2,FALSE) -> 10031 | D9: 16.33 | E9: 6
A10: 07 | B10: 谢千惠 | C10: =VLOOKUP(B10,'[1]000270401010'!$B$4:$C$39,2,FALSE) -> 10001 | D10: 16.00 | E10: 7
A11: 08 | B11: 程海芳 | C11: =VLOOKUP(B11,'[1]000270401010'!$B$4:$C$39,2,FALSE) -> 10027 | D11: 15.67 | E11: 8
A12: 09 | B12: 王媛媛 | C12: =VLOOKUP(B12,'[1]000270401010'!$B$4:$C$39,2,FALSE) -> 10002 | D12: 14.67 | E12: 9
A13: 10 | B13: 黄娟娟 | C13: =VLOOKUP(B13,'[1]000270401010'!$B$4:$C$39,2,FALSE) -> 10023 | D13: 14.67 | E13: 9
A14: 11 | B14: 李晶 | C14: =VLOOKUP(B14,'[1]000270401010'!$B$4:$C$39,2,FALSE) -> 10055 | D14: 14.67 | E14: 9
A15: 12 | B15: 熊璨 | C15: =VLOOKUP(B15,'[1]000270401010'!$B$4:$C$39,2,FALSE) -> 10021 | D15: 14.33 | E15: 12
A16: 13 | B16: 付梦菲 | C16: =VLOOKUP(B16,'[1]000270401010'!$B$4:$C$39,2,FALSE) -> 10013 | D16: 14.33 | E16: 12
A17: 14 | B17: 肖涵珏 | C17: =VLOOKUP(B17,'[1]000270401010'!$B$4:$C$39,2,FALSE) -> 10047 | D17: 14.33 | E17: 12
A18: 15 | B18: 张钰滢 | C18: =VLOOKUP(B18,'[1]000270401010'!$B$4:$C$39,2,FALSE) -> 10039 | D18: 14.00 | E18: 15
A19: 16 | B19: 黎娇 | C19: =VLOOKUP(B19,'[1]000270401010'!$B$4:$C$39,2,FALSE) -> 10058 | D19: 14.00 | E19: 15
A20: 17 | B20: 孙沁 | C20: =VLOOKUP(B20,'[1]000270401010'!$B$4:$C$39,2,FALSE) -> 10014 | D20: 14.00 | E20: 15
A21: 18 | B21: 席慧霖 | C21: =VLOOKUP(B21,'[1]000270401010'!$B$4:$C$39,2,FALSE) -> 10011 | D21: 14.00 | E21: 15
A22: 19 | B22: 陈欣 | C22: =VLOOKUP(B22,'[1]000270401010'!$B$4:$C$39,2,FALSE) -> 10049 | D22: 13.67 | E22: 19
A23: 20 | B23: 李晓丹 | C23: =VLOOKUP(B23,'[1]000270401010'!$B$4:$C$39,2,FALSE) -> 10016 | D23: 13.67 | E23: 19
A24: 21 | B24: 李淑敏 | C24: =VLOOKUP(B24,'[1]000270401010'!$B$4:$C$39,2,FALSE) -> 10043 | D24: 13.67 | E24: 19
A25: 22 | B25: 杨子薇 | C25: =VLOOKUP(B25,'[1]000270401010'!$B$4:$C$39,2,FALSE) -> 10007 | D25: 13.33 | E25: 22
A26: 23 | B26: 全倩倩 | C26: =VLOOKUP(B26,'[1]000270401010'!$B$4:$C$39,2,FALSE) -> 10018 | D26: 13.33 | E26: 22
A27: 24 | B27: 余婷 | C27: =VLOOKUP(B27,'[1]000270401010'!$B$4:$C$39,2,FALSE) -> 10036 | D27: 13.00 | E27: 24
A28: 25 | B28: 伍新凤 | C28: =VLOOKUP(B28,'[1]000270401010'!$B$4:$C$39,2,FALSE) -> 10029 | D28: 13.00 | E28: 24
A29: 26 | B29: 李小敏 | C29: =VLOOKUP(B29,'[1]000270401010'!$B$4:$C$39,2,FALSE) -> 10069 | D29: 13.00 | E29: 24
A30: 27 | B30: 张倩 | C30: =VLOOKUP(B30,'[1]000270401010'!$B$4:$C$39,2,FALSE) -> 10003 | D30: 12.67 | E30: 27
A31: 28 | B31: 袁景怡 | C31: =VLOOKUP(B31,'[1]000270401010'!$B$4:$C$39,2,FALSE) -> 10008 | D31: 12.67 | E31: 27
A32: 29 | B32: 冯逴 | C32: =VLOOKUP(B32,'[1]000270401010'!$B$4:$C$39,2,FALSE) -> 10005 | D32: 12.67 | E32: 27
A33: 30 | B33: 邓萍 | C33: =VLOOKUP(B33,'[1]000270401010'!$B$4:$C$39,2,FALSE) -> 10061 | D33: 12.33 | E33: 30
A34: 31 | B34: 潘琳 | C34: =VLOOKUP(B34,'[1]000270401010'!$B$4:$C$39,2,FALSE) -> 10010 | D34: 10.33 | E34: 31
A35: 32 | B35: 邹玉文 | C35: =VLOOKUP(B35,'[1]000270401010'!$B$4:$C$39,2,FALSE) -> 10037 | D35: 10.33 | E35: 31
A36: 33 | B36: 郭慧 | C36: =VLOOKUP(B36,'[1]000270401010'!$B$4:$C$39,2,FALSE) -> 10066 | D36: 10.00 | E36: 33
A37: 34 | B37: 王玉婵 | C37: =VLOOKUP(B37,'[1]000270401010'!$B$4:$C$39,2,FALSE) -> 10006 | D37: 9.33 | E37: 34
A38: 35 | B38: 梅忠涛 | C38: =VLOOKUP(B38,'[1]000270401010'!$B$4:$C$39,2,FALSE) -> 10050 | D38: 9.33 | E38: 34
A39: 36 | B39: 胡小燕 | C39: =VLOOKUP(B39,'[1]000270401010'!$B$4:$C$39,2,FALSE) -> 10048 | D39: 弃考

Sheet 000270401011
A1: 2024年省管局局属幼儿园幼儿教师岗绘画成绩统计表
A2: 岗位代码：000270401011
A3: 序号 | B3: 考生姓名 | C3: 面试准考证号 | D3: 绘画成绩 | E3: 排名
A4: 01 | B4: 熊凯露 | C4: 11023 | D4: 19.00 | E4: 1
A5: 02 | B5: 刘彦婷 | C5: 11002 | D5: 18.33 | E5: 2
A6: 03 | B6: 张雅涵 | C6: 11131 | D6: 18.00 | E6: 3
A7: 04 | B7: 徐菁 | C7: 11092 | D7: 17.67 | E7: 4
A8: 05 | B8: 陈笑 | C8: 11018 | D8: 17.33 | E8: 5
A9: 06 | B9: 李嘉星 | C9: 11133 | D9: 16.33 | E9: 6
A10: 07 | B10: 刘嘉笑 | C10: 11130 | D10: 16.33 | E10: 6
A11: 08 | B11: 唐金丹 | C11: 11051 | D11: 16.33 | E11: 6
A12: 09 | B12: 徐璐瑶 | C12: 11010 | D12: 16.33 | E12: 6
A13: 10 | B13: 潘桂欢 | C13: 11079 | D13: 16.00 | E13: 10
A14: 11 | B14: 蔡明霞 | C14: 11094 | D14: 16.00 | E14: 11
A15: 12 | B15: 江佳乐 | C15: 11008 | D15: 15.67 | E15: 12
A16: 13 | B16: 晏萍娜 | C16: 11100 | D16: 15.67 | E16: 13
A17: 14 | B17: 张萍 | C17: 11096 | D17: 15.67 | E17: 13
A18: 15 | B18: 徐飘 | C18: 11015 | D18: 15.67 | E18: 13
A19: 16 | B19: 许江伟 | C19: 11091 | D19: 15.33 | E19: 16
A20: 17 | B20: 王妞妞 | C20: 11071 | D20: 15.33 | E20: 17
A21: 18 | B21: 王嘉仪 | C21: 11115 | D21: 15.00 | E21: 18
A22: 19 | B22: 刘思影 | C22: 11037 | D22: 15.00 | E22: 18
A23: 20 | B23: 李慧 | C23: 11021 | D23: 15.00 | E23: 18
A24: 21 | B24: 涂嘉欣 | C24: 11128 | D24: 15.00 | E24: 18
A25: 22 | B25: 邹佳 | C25: 11166 | D25: 14.67 | E25: 22
A26: 23 | B26: 杨煜 | C26: 11102 | D26: 14.67 | E26: 22
A27: 24 | B27: 陈颖秋 | C27: 11042 | D27: 14.67 | E27: 22
A28: 25 | B28: 桂钰婷 | C28: 11163 | D28: 14.67 | E28: 22
A29: 26 | B29: 周子寒 | C29: 11025 | D29: 14.67 | E29: 22
A30: 27 | B30: 黄锋韬 | C30: 11113 | D30: 14.67 | E30: 22
A31: 28 | B31: 晏晗琦 | C31: 11031 | D31: 14.67 | E31: 22
A32: 29 | B32: 占炬岭 | C32: 11059 | D32: 14.33 | E32: 29
A33: 30 | B33: 张颖 | C33: 11134 | D33: 14.33 | E33: 29
A34: 31 | B34: 王佳雯 | C34: 11068 | D34: 14.00 | E34: 31
A35: 32 | B35: 甘媚 | C35: 11120 | D35: 14.00 | E35: 31
A36: 33 | B36: 黄力 | C36: 11110 | D36: 13.67 | E36: 33
A37: 34 | B37: 王芊钰 | C37: 11084 | D37: 13.67 | E37: 33
A38: 35 | B38: 张懿 | C38: 11032 | D38: 13.67 | E38: 33
A39: 36 | B39: 廖慧伶 | C39: 11112 | D39: 13.33 | E39: 36
A40: 37 | B40: 谢丁 | C40: 11045 | D40: 13.33 | E40: 36
A41: 38 | B41: 周诗睿 | C41: 11050 | D41: 13.33 | E41: 36
A42: 39 | B42: 熊雅芬 | C42: 11022 | D42: 13.33 | E42: 36
A43: 40 | B43: 甘丽玲 | C43: 11179 | D43: 13.00 | E43: 40
A44: 41 | B44: 吴桂丽 | C44: 11099 | D44: 13.00 | E44: 40
A45: 42 | B45: 詹娅欧 | C45: 11098 | D45: 13.00 | E45: 40
A46: 43 | B46: 饶星月 | C46: 11105 | D46: 13.00 | E46: 40
A47: 44 | B47: 饶铖芳 | C47: 11121 | D47: 13.00 | E47: 40
A48: 45 | B48: 闵永春 | C48: 11116 | D48: 12.67 | E48: 45
A49: 46 | B49: 熊雨瑶 | C49: 11019 | D49: 12.67 | E49: 45
A50: 47 | B50: 肖赵欣 | C50: 11017 | D50: 12.67 | E50: 45
A51: 48 | B51: 徐莹丽 | C51: 11142 | D51: 12.00 | E51: 48
A52: 49 | B52: 李璐 | C52: 11067 | D52: 12.00 | E52: 48
A53: 50 | B53: 陈姿伊 | C53: 11033 | D53: 12.00 | E53: 48
A54: 51 | B54: 胡瑄 | C54: 11013 | D54: 11.67 | E54: 51
A55: 52 | B55: 张佳棋 | C55: 11048 | D55: 11.67 | E55: 51
A56: 53 | B56: 李璇 | C56: 11011 | D56: 11.67 | E56: 51
A57: 54 | B57: 巢一祺 | C57: 11001 | D57: 11.67 | E57: 51
A58: 55 | B58: 王泽昕 | C58: 11003 | D58: 11.33 | E58: 55
A59: 56 | B59: 吴诗琪 | C59: 11176 | D59: 11.33 | E59: 55
A60: 57 | B60: 殷彩蝶 | C60: 11089 | D60: 11.00 | E60: 57
A61: 58 | B61: 熊庆 | C61: 11066 | D61: 10.67 | E61: 58
A62: 59 | B62: 吴子阳 | C62: 11041 | D62: 10.33 | E62: 59
A63: 60 | B63: 熊千慧 | C63: 11083 | D63: 弃考
